bitfinex/quotes_ETHUSD_20220227
["timestamp","ask_amount","ask_price","bid_price","bid_amount"]
[1645989883581,0.439,2702.6,2702.0,1.15560752]
[1645989883782,0.439,2702.9,2702.5,1.29106589]
[1645989883980,0.26314717,2702.9,2701.7,8.0789]
[1645989884184,0.67452728,2702.9,2701.9,0.01812585]
[1645989884383,0.23534093,2702.8,2701.9,0.01812585]
[1645989884579,1.85269,2703.0,2701.9,0.01812585]
[1645989884580,0.439,2702.7,2701.9,0.01812585]
[1645989884780,0.439,2702.6,2701.9,0.01812585]
[1645989885083,0.66744819,2702.6,2701.7,8.0789]
[1645989885279,0.66744819,2702.6,2702.2,0.00236414]
[1645989886282,0.66744819,2702.6,2701.8,5.1176]
[1645989886482,0.439,2702.6,2701.9,0.0313577]
[1645989886725,0.439,2702.6,2700.4,5.1893]
[1645989886726,0.92687,2701.8,2700.4,5.1893]
[1645989886918,0.92687,2701.8,2700.4,8.6893]
[1645989886919,0.439,2701.7,2700.4,8.6893]
[1645989887120,0.439,2701.7,2701.3,1.41683948]
[1645989887318,0.63292697,2701.7,2700.6,0.25]
[1645989887518,0.63292697,2701.7,2700.6,0.05]
[1645989887718,1.0,2701.3,2700.6,5.05]
[1645989887918,1.0,2701.3,2700.8,0.01676699]
[1645989888117,0.25516884,2701.2,2700.8,0.01676699]
[1645989888320,0.69416884,2701.2,2700.8,0.01676699]
[1645989888519,0.26944732,2701.1,2700.8,0.01676699]
[1645989888718,0.26944732,2701.1,2700.5,1.2408183]
[1645989888719,0.439,2701.0,2700.5,1.22807411]
[1645989888921,0.66266867,2701.0,2700.4,4.75037649]
[1645989889120,2.78064,2701.6,2700.9,0.0022088]
[1645989889326,1.0,2701.2,2700.9,0.0022088]
[1645989889525,0.00616321,2702.0,2700.9,0.0022088]
[1645989889526,0.439,2701.9,2700.9,0.0022088]
[1645989889722,0.25278998,2701.8,2700.9,5.0022088]
[1645989889921,0.19303794,2702.3,2700.8,7.841]
[1645989890122,0.65124949,2702.6,2700.8,7.841]
[1645989890361,0.00616331,2702.0,2700.9,0.00220876]
[1645989890564,0.93272331,2702.0,2700.9,0.00220876]
[1645989890961,0.00616331,2702.0,2700.9,0.00220876]
[1645989891161,2.99322182,2702.5,2700.9,0.3146]
[1645989891366,0.00616412,2702.0,2701.9,1.25379176]
[1645989891564,6.412e-05,2702.0,2701.9,1.56839176]
[1645989891969,6.412e-05,2702.0,2701.9,0.3146]
[1645989892366,0.01444463,2702.6,2701.9,0.3146]
[1645989892571,0.45344463,2702.6,2701.2,0.25]
[1645989892767,0.92635,2702.5,2701.2,0.25]
[1645989892966,0.439,2702.4,2701.2,0.25]
[1645989893167,0.21339578,2702.3,2701.2,0.25]
[1645989893366,1.0,2701.3,2701.2,0.25]
[1645989893568,1.0,2701.3,2701.0,1.184]
[1645989894206,1.0,2701.3,2701.1,1.36433479]
[1645989894515,1.0,2701.3,2699.6,16.0637]
[1645989894516,2.91811269,2700.9,2699.5,2.97226896]
[1645989894710,2.91811269,2700.9,2699.3,1.04597125]
[1645989894711,2.5135563,2699.6,2699.3,0.33094021]
[1645989894907,0.1849709,2699.4,2697.1,3.49224285]
[1645989895109,0.92785,2698.1,2697.1,3.49224285]
[1645989895306,5.0,2698.0,2696.7,0.46969994]
[1645989895513,5.0,2698.0,2695.3,1.56871274]
[1645989895514,4.68145549,2696.2,2695.7,1.09110869]
[1645989895712,0.2291868,2696.1,2695.7,1.09110869]
[1645989895913,0.18537335,2696.0,2695.1,0.02790647]
[1645989896112,5.931,2695.9,2695.1,0.02790647]
[1645989896316,35.86109018,2695.9,2695.8,1.40764905]
[1645989896515,11.39315549,2696.2,2695.1,0.02790647]
[1645989896516,4.48145549,2696.2,2695.5,5.0]
[1645989896717,4.48145549,2696.2,2695.1,0.02790647]
[1645989896718,0.20764104,2696.1,2695.1,0.02790647]
[1645989896915,5.48145549,2696.2,2695.1,0.02790647]
[1645989897118,1.0,2696.5,2695.2,25.5]
[1645989897313,0.3702,2697.5,2696.2,5.0]
[1645989897314,0.24032387,2696.8,2696.2,5.0]
[1645989897516,0.3702,2697.5,2695.7,0.01227662]
[1645989897517,0.3702,2697.5,2696.3,1.08080326]
[1645989897715,0.1736,2697.9,2695.9,0.25]
[1645989897961,0.439,2697.8,2695.9,0.25]
[1645989898162,0.23701121,2697.7,2695.9,0.25]
[1645989898366,1.0,2696.9,2695.9,0.25]
[1645989898567,1.0,2696.9,2695.4,15.2292]
[1645989898568,0.24130824,2696.8,2695.4,15.2292]
[1645989898770,0.18715907,2697.5,2697.3,1.16300992]
[1645989898965,0.26011452,2697.4,2696.7,0.00230565]
[1645989899169,0.439,2697.3,2696.7,0.00230565]
[1645989899367,0.26752207,2697.6,2696.7,0.00230565]
[1645989899368,0.26523994,2697.6,2696.7,0.00230565]
[1645989899567,0.2258391,2697.5,2696.7,7.8553]
[1645989899773,0.439,2698.1,2696.7,8.2199]
[1645989899774,0.26789879,2698.1,2696.7,8.2199]
[1645989899967,0.15120716,2698.9,2696.7,8.2199]
[1645989899968,0.21149887,2698.5,2697.9,1.0477241]
[1645989900171,2.50591,2699.3,2698.9,0.03120514]
[1645989900172,0.22102716,2699.1,2698.9,0.03120514]
[1645989900370,0.5,2699.3,2698.9,0.03120514]
[1645989900371,0.22253384,2699.2,2698.9,0.03120514]
[1645989900571,0.55931826,2700.2,2698.9,0.03120514]
[1645989900572,0.439,2700.0,2698.9,0.03120514]
[1645989900767,0.01208065,2700.4,2698.9,0.03120514]
[1645989900768,2.69784331,2699.6,2698.9,0.03120514]
[1645989901167,2.69784331,2699.6,2698.9,0.03315638]
[1645989901168,2.51546543,2699.6,2698.9,0.03315638]
[1645989901609,2.51546543,2699.6,2697.9,8.2015]
[1645989901610,48.0,2698.9,2696.8,1.1439]
[1645989901811,5.0,2698.6,2696.8,1.1439]
[1645989902006,0.01272319,2698.3,2696.7,0.05682882]
[1645989902207,69.92109018,2698.5,2695.5,11.3913]
[1645989902208,0.439,2698.2,2695.5,11.3913]
[1645989902410,5.20597922,2698.4,2695.8,0.25]
[1645989902411,1.19040625,2697.4,2695.8,0.25]
[1645989902609,1.19154803,2697.2,2695.8,0.25]
[1645989902807,0.20307762,2697.0,2695.8,0.25]
[1645989903005,0.21483314,2696.8,2696.2,1.33077033]
[1645989903206,1.0,2696.6,2696.2,1.33077033]
[1645989903716,1.0,2696.6,2695.1,0.02790647]
[1645989903717,5.01207459,2696.3,2695.1,0.02790647]
[1645989903911,5.01207459,2696.3,2693.0,0.91311419]
[1645989903912,0.01283431,2695.3,2693.1,6.95650647]
[1645989904112,0.01252834,2695.0,2693.2,1.75304]
[1645989904309,25.5,2693.7,2692.8,4.470461]
[1645989904511,1.0,2693.8,2691.4,0.5147362]
[1645989904512,11.5,2693.3,2691.4,0.0173062]
[1645989904717,5.50432382,2693.0,2692.2,0.25]
[1645989904917,5.74327602,2693.0,2692.2,0.25]
[1645989905110,0.439,2692.9,2691.4,0.0173062]
[1645989905380,2.78999,2693.2,2692.1,7.95]
[1645989905568,35.42209018,2694.7,2693.5,0.97672022]
[1645989905768,0.22919936,2693.9,2692.3,15.5]
[1645989905967,1.0,2694.3,2692.3,15.5]
[1645989905968,1.26020095,2694.3,2693.4,5.0]
[1645989906169,1.0,2694.3,2692.5,8.0341]
[1645989906374,2.63032,2694.2,2693.5,5.0]
[1645989906567,2.63032,2694.2,2692.6,3.5]
[1645989906568,2.53032,2694.2,2692.6,3.5]
[1645989906865,0.439,2695.2,2695.1,1.21474723]
[1645989906866,0.65832252,2695.2,2695.1,1.21474723]
[1645989907065,3.71604,2696.2,2695.1,1.21474723]
[1645989907066,0.65115179,2695.4,2695.1,1.21474723]
[1645989907267,0.439,2695.6,2695.1,1.21474723]
[1645989907666,0.68227367,2695.6,2695.1,1.21474723]
[1645989907871,0.24327367,2695.6,2695.1,1.21474723]
[1645989908069,0.13819997,2696.2,2695.1,1.21474723]
[1645989908070,0.439,2696.1,2695.1,1.21474723]
[1645989908268,0.19356965,2696.3,2695.1,1.51474723]
[1645989908470,0.01252275,2697.2,2695.1,1.21474723]
[1645989908667,0.39689539,2697.7,2695.2,0.1482]
[1645989908668,0.22644024,2697.0,2695.2,0.1482]
[1645989908868,0.39689539,2697.7,2695.2,0.1482]
[1645989908869,0.3709,2697.7,2695.9,5.0]
[1645989909107,0.3709,2697.7,2695.2,0.51479363]
[1645989909108,0.24161674,2696.7,2696.0,3.30979359]
[1645989909409,5.0,2697.5,2696.0,3.30979359]
[1645989909410,0.18008108,2697.5,2696.2,20.5]
[1645989909608,0.02574103,2698.0,2696.2,20.5]
[1645989909609,0.24815466,2697.6,2696.2,5.0]
[1645989909907,0.02574103,2698.0,2696.0,3.45799359]
[1645989909908,35.42209018,2697.5,2696.0,1.05480782]
[1645989910112,3.71040374,2697.4,2697.2,1.38570804]
[1645989910311,1.82647934,2696.4,2696.2,5.0]
[1645989910513,1.82647934,2696.4,2696.1,1.40581558]
[1645989910711,1.82647934,2696.4,2696.1,0.85677551]
[1645989910910,1.79520523,2696.4,2696.1,0.85677551]
[1645989911109,1.79520523,2696.4,2695.1,0.1482]
[1645989911310,1.79520523,2696.4,2694.6,0.37091]
[1645989911712,1.0,2695.7,2694.4,13.0604]
[1645989911921,0.01284437,2695.6,2695.3,1.1939]
[1645989912115,0.59424437,2695.6,2695.3,1.1939]
[1645989912313,0.793442,2695.6,2695.3,1.1939]
[1645989912514,0.642242,2695.6,2695.4,0.00199808]
[1645989912730,0.1528,2695.9,2695.0,0.03796916]
[1645989912731,0.20600169,2695.8,2695.0,0.03796916]
[1645989912967,0.0124002,2695.9,2695.0,0.03796916]
[1645989912968,0.01285745,2695.2,2695.0,0.03796916]
[1645989913166,0.439,2695.1,2694.6,0.25]
[1645989913364,0.439,2695.1,2693.3,8.153]
[1645989913365,0.26785467,2695.0,2693.9,0.25]
[1645989913565,0.26785467,2695.0,2693.4,3.75]
[1645989913766,1.0,2694.4,2693.7,0.007]
[1645989913969,0.22860826,2694.3,2693.7,0.007]
[1645989914364,1.0,2694.1,2693.7,0.007]
[1645989914564,0.19221343,2694.0,2693.7,0.007]
[1645989914765,0.33381343,2694.0,2693.7,1.3801846]
[1645989914966,0.22662663,2694.0,2693.7,1.3801846]
[1645989915165,2.78774,2695.1,2693.7,1.3801846]
[1645989915166,0.21950821,2694.1,2693.7,1.3801846]
[1645989915372,1.26555301,2694.3,2693.7,1.3801846]
[1645989915571,1.0,2694.3,2693.7,1.3801846]
[1645989915769,1.0,2694.6,2693.7,1.3801846]
[1645989915975,1.20985258,2694.6,2693.8,0.1484]
[1645989916171,1.20985258,2694.6,2694.3,1.21378882]
[1645989916599,1.20985258,2694.6,2693.7,0.007]
[1645989916600,1.0,2694.6,2693.7,0.007]
[1645989916900,3.5,2695.5,2693.7,0.007]
[1645989916901,0.439,2695.1,2694.0,5.0]
[1645989917104,0.1456,2695.7,2694.3,5.0]
[1645989917308,0.00628528,2695.1,2694.4,3.6484]
[1645989917504,48.0,2694.7,2694.4,0.1484]
[1645989917703,0.00628528,2695.1,2694.5,1.21689361]
[1645989917907,0.00628528,2695.1,2694.1,8.5]
[1645989917908,8.528e-05,2695.1,2695.0,1.43906899]
[1645989918103,8.528e-05,2695.1,2695.0,8.8]
[1645989918304,0.08166811,2696.3,2695.0,0.1484]
[1645989918305,3.58166811,2696.3,2695.0,0.1484]
[1645989918507,0.439,2696.2,2694.7,0.25]
[1645989918707,0.00584538,2695.1,2694.8,5.0]
[1645989918906,0.02724318,2695.0,2694.7,0.00174531]
[1645989919109,8.856e-05,2695.1,2694.9,1.36129863]
[1645989919412,0.3708,2696.3,2695.0,5.0]
[1645989919611,0.3708,2696.3,2695.7,5.0]
[1645989919810,0.3708,2696.3,2695.8,0.1482]
[1645989920010,0.3708,2696.3,2695.5,5.0]
[1645989920209,3.5,2697.6,2695.9,5.0]
[1645989920210,0.26344897,2697.5,2695.9,5.0]
[1645989920471,0.25793594,2697.3,2695.7,5.0]
[1645989920662,3.5,2697.2,2695.7,5.1483]
[1645989920867,3.5,2697.1,2695.7,0.1483]
[1645989921075,3.63819997,2697.1,2695.3,0.25]
[1645989921269,3.5,2696.3,2695.3,0.25]
[1645989921468,3.68667108,2696.3,2695.3,0.25]
[1645989921669,0.01254358,2695.7,2695.3,0.25]
[1645989921866,0.01254358,2695.7,2694.3,4.67662714]
[1645989921867,0.439,2695.6,2694.3,4.67662714]
[1645989922067,0.01214078,2696.0,2694.8,2.49353833]
[1645989922270,1.0,2695.3,2694.9,0.00177526]
[1645989922470,0.18250928,2695.2,2695.0,1.31796541]
[1645989922671,0.18250928,2695.2,2694.9,0.00177526]
[1645989923074,0.18250928,2695.2,2694.6,0.25]
[1645989923272,0.18250928,2695.2,2694.8,2.05625163]
[1645989923469,0.18250928,2695.2,2694.3,3.4244]
[1645989923470,0.00628697,2695.2,2694.9,0.00177526]
[1645989923672,0.00628697,2695.2,2695.1,2.05625163]
[1645989923870,0.00628697,2695.2,2695.1,3.27136117]
[1645989924309,0.02345348,2696.2,2695.1,3.27136117]
[1645989924310,0.2118539,2696.0,2695.1,2.05625163]
[1645989924517,0.02345348,2696.2,2694.5,3.5]
[1645989924518,0.07875649,2695.0,2694.5,2.05625163]
[1645989924715,0.07875649,2695.0,2694.9,0.00177526]
[1645989924914,0.07875649,2695.0,2694.5,0.0443878]
[1645989924915,0.0007782,2694.7,2694.5,0.0443878]
[1645989925116,0.0007782,2694.7,2694.6,2.05625163]
[1645989925315,0.0007782,2694.7,2694.6,3.38404739]
[1645989925720,0.0007782,2694.7,2694.6,2.05625163]
[1645989926715,0.0007782,2694.7,2694.6,3.17957114]
[1645989927114,0.0007782,2694.7,2694.6,2.05625163]
[1645989927317,0.0007782,2694.7,2694.5,0.00167562]
[1645989927518,0.0007782,2694.7,2694.6,2.05625163]
[1645989927965,0.0007782,2694.7,2694.5,0.00167562]
[1645989928160,0.0007782,2694.7,2694.4,1.1998]
[1645989928370,0.0007782,2694.7,2694.4,1.21244562]
[1645989928563,0.0007782,2694.7,2694.6,2.05625163]
[1645989928764,0.54111089,2695.0,2694.7,20.5]
[1645989928765,0.10211089,2695.0,2694.7,20.5]
[1645989928964,0.10211089,2695.0,2694.9,2.05625163]
[1645989929161,0.10211089,2695.0,2694.9,0.38571307]
[1645989929362,0.371,2695.9,2695.1,1.3490737]
[1645989929564,0.371,2695.9,2695.8,1.58186414]
[1645989929963,0.371,2695.9,2695.8,0.38571307]
[1645989930165,0.371,2695.9,2695.0,0.02320697]
[1645989930166,0.62998335,2695.9,2695.0,0.02320697]
[1645989930363,0.25898335,2695.9,2695.7,0.38571307]
[1645989930570,0.7030751,2696.5,2695.7,0.38571307]
[1645989930767,0.7030751,2696.5,2695.0,0.38780697]
[1645989930768,0.439,2696.5,2695.0,0.38780697]
[1645989930971,0.63935202,2696.5,2696.3,0.38571307]
[1645989931265,0.64391074,2696.5,2696.3,0.38571307]
[1645989931467,1.36738,2696.5,2696.0,0.38571307]
[1645989931730,0.26897286,2696.5,2696.4,0.38571307]
[1645989931930,0.26446278,2696.9,2696.4,0.38571307]
[1645989932127,0.26446278,2696.9,2695.9,0.3646]
[1645989932128,0.26446278,2696.9,2696.8,0.38571307]
[1645989932328,0.26446278,2696.9,2696.8,1.49255566]
[1645989932530,0.26446278,2696.9,2696.8,0.38571307]
[1645989932930,0.26446278,2696.9,2696.0,0.38571307]
[1645989933133,0.26446278,2696.9,2695.9,0.6146]
[1645989933436,0.26446278,2696.9,2696.0,3.51078979]
[1645989933437,0.21446278,2696.9,2696.0,3.51078979]
[1645989933830,0.21446278,2696.9,2695.9,0.3]
[1645989934230,0.21446278,2696.9,2695.8,0.0020729]
[1645989934433,1.48921021,2696.8,2695.8,0.0020729]
[1645989934630,1.48921021,2696.8,2695.6,3.5]
[1645989935032,0.21446278,2696.9,2695.8,0.3646]
[1645989935233,0.21446278,2696.9,2696.5,0.3646]
[1645989935491,0.1392,2697.4,2696.8,13.8646]
[1645989935687,0.1392,2697.4,2697.0,0.3646]
[1645989935887,1.65881021,2698.0,2697.0,0.3646]
[1645989936089,1.65801021,2698.0,2697.0,0.3646]
[1645989936290,0.1744,2697.9,2696.8,17.0]
[1645989936487,1.48921021,2697.8,2696.8,13.5]
[1645989936693,0.1848,2697.9,2695.3,6.31750765]
[1645989936694,20.5,2697.5,2695.3,6.31750765]
[1645989936891,0.01233186,2696.2,2695.8,0.25]
[1645989937091,12.74883831,2695.8,2694.7,0.25]
[1645989937290,0.92881,2695.5,2694.7,0.25]
[1645989937488,0.92881,2695.5,2694.6,0.05940901]
[1645989937489,0.21827707,2694.8,2694.6,0.05940901]
[1645989937687,3.939,2695.4,2694.6,0.0142774]
[1645989937688,0.439,2694.7,2694.6,0.0142774]
[1645989937887,2.12488806,2694.7,2694.6,0.0142774]
[1645989938287,2.12488806,2694.7,2694.6,7.74e-05]
[1645989938689,5.62488806,2694.7,2693.7,0.257]
[1645989938897,5.62488806,2694.7,2693.7,0.007]
[1645989938898,1.48921021,2693.8,2693.7,0.007]
[1645989939108,2.1810467,2693.8,2693.7,0.007]
[1645989939306,1.0,2693.8,2693.7,0.007]
[1645989939509,0.1416,2694.8,2693.7,0.007]
[1645989939510,1.0,2694.6,2693.7,0.007]
[1645989939706,1.0,2694.6,2693.8,0.014]
[1645989939906,1.23637372,2694.5,2693.8,0.014]
[1645989940109,1.23637372,2694.5,2693.9,1.25510367]
[1645989940308,1.23637372,2694.5,2693.8,0.014]
[1645989940309,1.23637372,2694.0,2693.8,0.014]
[1645989940516,1.23637372,2694.0,2693.9,0.01204278]
[1645989940713,5.0,2693.9,2693.7,0.00485843]
[1645989940912,1.23637372,2693.8,2693.7,0.00485843]
[1645989941117,1.67537372,2693.8,2693.7,0.00485843]
[1645989941313,2.03997372,2693.8,2693.4,0.2229]
[1645989941515,1.60097372,2693.5,2693.4,0.2229]
[1645989941713,0.439,2693.5,2693.4,0.2229]
[1645989941914,0.389,2693.5,2693.4,0.2229]
[1645989942315,11.88809015,2695.0,2693.4,0.2229]
[1645989942316,34.18010254,2695.1,2693.6,20.5]
[1645989942521,1.72390163,2695.9,2695.0,24.26362628]
[1645989942712,2.86993232,2696.9,2695.0,24.26362628]
[1645989942713,1.23637372,2697.4,2696.6,1.39025581]
[1645989942988,2.15487703,2697.7,2695.6,0.3646]
[1645989942989,0.92805,2697.7,2695.7,3.5]
[1645989943193,0.02543582,2696.8,2695.7,0.01243694]
[1645989943986,0.02543582,2696.8,2695.3,3.75]
[1645989944290,0.39003582,2696.8,2695.5,0.9281495]
[1645989944486,0.39003582,2696.8,2695.6,3.5]
[1645989944887,0.39003582,2696.8,2695.4,1.85619]
[1645989945092,0.02543582,2696.8,2695.5,3.5]
[1645989945293,0.0057713,2696.3,2695.5,4.4281548]
[1645989945493,0.0057713,2696.3,2695.7,0.92809]
[1645989945694,0.0057713,2696.3,2695.8,3.5]
[1645989945695,7.13e-05,2696.3,2695.8,3.5]
[1645989945898,7.13e-05,2696.3,2695.9,0.439]
[1645989946092,0.02513791,2697.6,2696.0,3.5]
[1645989946292,0.02513791,2697.6,2697.2,1.12047698]
[1645989946704,0.02513791,2697.6,2696.5,3.5]
[1645989946911,0.38973791,2697.6,2696.3,3.5]
[1645989947309,0.38973791,2697.6,2696.0,0.25]
[1645989947310,0.3646,2697.4,2696.0,0.25]
[1645989947506,0.3646,2697.4,2696.0,3.75]
[1645989947706,0.3646,2697.4,2696.4,1.06916995]
[1645989947903,5.3646,2696.9,2696.4,1.06916995]
[1645989948105,5.3646,2696.9,2696.0,0.25]
[1645989948303,5.3646,2696.9,2695.7,7.7049]
[1645989948304,0.3646,2696.7,2695.7,7.7049]
[1645989948506,0.4061396,2696.7,2695.7,7.7093556]
[1645989948712,2.15487703,2698.1,2696.6,0.01226912]
[1645989948912,5.95464147,2699.0,2697.0,0.01290589]
[1645989948913,2.15487703,2699.0,2697.0,0.01290589]
[1645989949111,0.3713,2699.2,2697.2,0.25]
[1645989949112,5.0,2699.1,2697.2,0.25]
[1645989949310,2.664377,2699.2,2697.4,1.85441]
[1645989949511,2.15487703,2699.1,2697.4,3.5]
[1645989949710,2.15487703,2699.1,2697.3,0.5]
[1645989949711,5.0,2697.5,2697.3,0.5]
[1645989949911,0.55625923,2697.2,2695.7,0.0044556]
[1645989950110,0.55625923,2697.2,2695.8,1.32734318]
[1645989950111,0.01285019,2696.2,2695.8,1.32734318]
[1645989950365,2.01285019,2696.5,2695.7,0.0044556]
[1645989950567,2.27667423,2696.5,2695.7,0.0044556]
[1645989951167,0.02327071,2696.2,2695.4,0.2044556]
[1645989951367,0.18433395,2696.1,2695.4,0.2044556]
[1645989951569,0.18457788,2696.1,2695.4,0.2044556]
[1645989951769,0.02327071,2696.2,2695.4,0.2044556]
[1645989952368,0.02327071,2696.2,2695.9,1.26273696]
[1645989952571,0.06087591,2696.2,2695.9,1.26273696]
[1645989952767,0.02318166,2696.3,2695.9,1.26273696]
[1645989953173,0.02318166,2696.3,2695.4,0.2044556]
[1645989953371,2.01285019,2696.1,2695.4,0.2044556]
[1645989953572,2.01285019,2695.5,2695.4,0.2044556]
[1645989953768,2.01285019,2695.5,2695.1,1.1463]
[1645989953969,2.23086224,2695.5,2695.1,1.1463]
[1645989954208,2.66986224,2695.5,2695.1,1.1463]
[1645989954413,0.439,2695.5,2695.1,1.1463]
[1645989954616,0.63415515,2696.1,2695.1,1.1463]
[1645989954808,0.25971515,2696.0,2695.1,1.1463]
[1645989955012,2.27256534,2696.0,2695.1,1.1463]
[1645989955208,0.02318166,2696.3,2695.4,1.43850483]
[1645989955410,2.03603185,2696.3,2695.4,1.43850483]
[1645989955611,0.2691101,2696.2,2695.4,1.73850483]
[1645989955812,2.01285019,2696.3,2695.4,1.73850483]
[1645989956018,0.00629354,2696.4,2695.4,1.73850483]
[1645989956213,1.2067,2696.9,2696.1,2.98714981]
[1645989956411,0.00629472,2696.4,2696.3,1.21157396]
[1645989956913,0.00629472,2696.4,2696.3,1.51157396]
[1645989956914,9.472e-05,2696.4,2696.3,1.51157396]
[1645989957114,1.2067,2696.9,2696.3,1.51157396]
[1645989957115,1.2067,2696.9,2696.3,0.3]
[1645989957312,0.69481968,2697.4,2696.6,2.98714981]
[1645989957512,0.03272529,2697.4,2696.6,2.98714981]
[1645989957959,0.03272529,2697.4,2696.6,3.13534981]
[1645989958160,0.03272529,2697.4,2697.0,1.1993954]
[1645989958360,0.542474,2696.8,2696.6,0.1482]
[1645989958663,3.596e-05,2697.0,2696.8,0.0186414]
[1645989958864,0.01872826,2697.0,2696.8,3.00579121]
[1645989959064,2.826e-05,2697.0,2696.8,0.3186414]
[1645989959468,2.826e-05,2697.0,2696.8,0.0186414]
[1645989959666,2.826e-05,2697.0,2696.9,1.01237525]
[1645989959864,2.826e-05,2697.0,2696.8,0.0186414]
[1645989960073,0.54164723,2697.8,2696.7,3.43534981]
[1645989960464,0.54164723,2697.8,2696.8,0.3646]
[1645989960665,2.01285019,2697.9,2696.8,0.3646]
[1645989960967,1.03219418,2698.0,2696.6,1.36003177]
[1645989960968,0.88259418,2697.7,2696.6,1.36003177]
[1645989961169,3.92274714,2697.8,2696.6,1.36003177]
[1645989961170,2.23390212,2697.6,2696.6,1.36003177]
[1645989961366,0.25830037,2697.5,2696.6,1.36003177]
[1645989961608,0.1512,2697.7,2696.6,1.36003177]
[1645989961812,0.18169133,2697.6,2696.7,0.3646]
[1645989962007,0.16,2697.8,2696.7,0.3646]
[1645989962008,0.21049659,2697.7,2696.7,0.3646]
[1645989962212,0.21049659,2697.7,2697.1,1.38348061]
[1645989962611,1.12452654,2697.6,2697.1,1.38348061]
[1645989962807,1.12452654,2697.6,2696.7,3.35174981]
[1645989963008,3.13737673,2697.6,2696.5,0.25]
[1645989963216,0.03638539,2697.0,2696.9,0.00252626]
[1645989963413,0.00044577,2696.8,2696.5,0.25]
[1645989963610,2.01285019,2696.7,2696.5,0.25]
[1645989963810,1.12452654,2696.6,2696.0,8.6926]
[1645989964012,2.37745019,2696.1,2695.9,3.6997]
[1645989964211,2.37745019,2696.1,2695.7,0.25]
[1645989964212,1.12452654,2696.0,2695.7,0.25]
[1645989964412,2.01285019,2695.8,2695.3,1.127]
[1645989964613,4.5,2696.5,2694.8,17.4648]
[1645989964614,0.19997534,2696.1,2694.8,17.4648]
[1645989964819,1.0,2696.5,2694.8,17.4648]
[1645989964820,0.92837,2696.5,2695.1,2.33472595]
[1645989965016,2.19420468,2696.1,2695.1,2.33472595]
[1645989965459,2.19420468,2696.1,2695.1,2.63472595]
[1645989965658,0.18135449,2696.1,2695.2,2.98714981]
[1645989965860,0.00044577,2696.8,2695.2,0.1482]
[1645989966063,0.00044577,2696.8,2695.5,0.00180137]
[1645989966262,1.12498322,2696.8,2695.9,0.3646]
[1645989966460,0.00044577,2696.8,2696.0,0.1482]
[1645989966660,0.00044577,2696.8,2696.4,1.30686333]
[1645989966860,0.00044577,2696.8,2696.2,0.3646]
[1645989967062,0.00044577,2696.8,2696.2,0.6646]
[1645989967465,2.01285019,2696.3,2695.9,0.00720441]
[1645989967663,0.24416926,2696.8,2695.9,0.00720441]
[1645989967972,0.24416926,2696.8,2695.5,0.25]
[1645989967973,2.01285019,2696.3,2695.5,0.25]
[1645989968163,0.3646,2696.7,2695.2,3.6483]
[1645989968362,2.01329596,2696.8,2695.2,3.6483]
[1645989968363,1.48933447,2696.6,2695.8,0.00720454]
[1645989968565,0.03836773,2696.0,2695.8,0.00720454]
[1645989969212,0.00487203,2695.3,2695.2,3.90062946]
[1645989969416,0.00487203,2695.3,2695.2,0.15062946]
[1645989969619,0.00487203,2695.3,2695.2,0.00232946]
[1645989971120,2.01772222,2695.3,2694.6,3.35177535]
[1645989971320,2.01285019,2694.9,2694.6,3.35177535]
[1645989971521,2.01285019,2694.9,2694.3,0.25]
[1645989971722,2.01285019,2694.9,2694.0,0.3646]
[1645989971923,2.01285019,2694.9,2693.8,1.158]
[1645989972120,2.24682779,2694.9,2693.9,7.7351]
[1645989972322,2.24682779,2694.9,2694.2,1.14150215]
[1645989972955,0.2339776,2694.9,2693.9,7.7351]
[1645989973156,0.00487203,2695.3,2693.9,7.5867]
[1645989973358,2.01285019,2694.1,2693.9,7.5867]
[1645989973555,2.01285019,2694.1,2693.5,3.0446]
[1645989973556,2.01285019,2694.1,2693.5,2.8962]
[1645989973754,2.01285019,2694.1,2693.5,0.2866]
[1645989974257,0.13819997,2695.0,2693.6,0.3646]
[1645989974455,0.13819997,2695.0,2693.6,0.513]
[1645989974456,2.01285019,2694.7,2693.6,0.513]
[1645989974657,2.21831175,2694.7,2693.7,0.3646]
[1645989975057,2.21831175,2694.7,2694.2,1.03905003]
[1645989975259,2.01285019,2694.7,2694.2,1.03905003]
[1645989975659,2.01285019,2694.7,2693.6,0.1484]
[1645989975660,0.25140106,2694.7,2693.6,0.1484]
[1645989975860,2.01285019,2694.4,2693.5,0.5366]
[1645989976060,0.2038058,2694.3,2693.5,0.5366]
[1645989976260,0.14397996,2695.0,2693.6,2.98714981]
[1645989976261,2.01285019,2694.6,2693.6,2.98714981]
[1645989976462,2.28050142,2694.6,2693.6,0.1484]
[1645989976710,2.01285019,2694.6,2693.6,0.1484]
[1645989977106,0.14397921,2695.0,2693.6,0.1484]
[1645989977309,2.01285019,2694.4,2693.6,0.1484]
[1645989977712,0.23176779,2694.7,2693.7,1.04025052]
[1645989977713,2.01285019,2694.6,2693.7,1.04025052]
[1645989977910,2.01285019,2694.6,2693.8,0.3646]
[1645989978110,0.24783112,2694.7,2693.8,0.6646]
[1645989978307,2.01285019,2694.4,2693.8,0.6646]
[1645989978509,2.01285019,2694.4,2693.8,0.6675183]
[1645989978710,2.00518762,2694.6,2693.8,0.0029183]
[1645989978913,4.63366773,2694.5,2693.8,0.0029183]
[1645989979114,1.96285019,2694.3,2693.8,0.0029183]
[1645989979312,1.96285019,2694.3,2694.0,0.00171665]
[1645989980366,1.96285019,2694.3,2693.8,0.04583679]
[1645989980367,1.96285019,2694.3,2693.8,0.0029183]
[1645989980563,1.96285019,2694.3,2694.0,0.00171662]
[1645989981561,2.00518762,2694.6,2694.2,1.41587951]
[1645989981768,0.04233743,2694.6,2694.2,1.41587951]
[1645989982161,0.04233743,2694.6,2694.2,1.71587951]
[1645989982361,0.03737927,2694.3,2694.2,1.71587951]
[1645989982566,0.00629415,2695.0,2694.5,11.4246]
[1645989982765,0.88259418,2696.2,2694.5,11.4246]
[1645989982766,1.96285019,2695.5,2694.6,3.5]
[1645989982962,0.00629469,2695.0,2694.6,3.5587]
[1645989983166,0.00629469,2695.0,2694.6,3.9233]
[1645989983364,9.469e-05,2695.0,2694.8,11.06]